fUST/lending_fUST_20241201
["ID","MTS","AMOUNT","RATE_DAILY","PERIOD"]
[343899467,1733013044151,-426.94773858,0.00026027,3]
[343899468,1733013044161,-500.0,0.00026027,3]
[343899469,1733013044170,-500.0,0.00026027,3]
[343899470,1733013044180,-500.0,0.00026027,3]
[343899471,1733013044189,-657.83,0.00026027,3]
[343899472,1733013044199,-500.0,0.00026027,3]
[343899473,1733013044208,-500.0,0.00026027,3]
[343899474,1733013044217,-2276.06,0.00026027,3]
[343899475,1733013044227,-500.0,0.00026027,3]
[343899476,1733013044236,-500.0,0.00026027,3]
[343899477,1733013044248,-559.63,0.00026027,3]
[343899478,1733013044258,-636.74,0.00026027,3]
[343899479,1733013044267,-500.0,0.00026027,3]
[343899480,1733013044277,-500.0,0.00026027,3]
[343899481,1733013044286,-500.0,0.00026027,3]
[343899482,1733013044295,-500.0,0.00026027,3]
[343899483,1733013044304,-909.37,0.00026027,3]
[343899484,1733013044313,-500.0,0.00026027,3]
[343899485,1733013044323,-500.0,0.00026027,3]
[343899486,1733013044332,-500.0,0.00026027,3]
[343899487,1733013044341,-500.0,0.00026027,3]
[343899488,1733013044351,-250.36,0.00026027,3]
[343899489,1733013044360,-531.47,0.00026027,3]
[343899490,1733013044370,-500.0,0.00026027,3]
[343899491,1733013044379,-500.0,0.00026027,3]
[343899492,1733013044388,-500.0,0.00026027,3]
[343899493,1733013044397,-500.0,0.00026027,3]
[343899494,1733013044407,-500.0,0.00026027,3]
[343899495,1733013044416,-500.0,0.00026027,3]
[343899496,1733013044425,-1910.88,0.00026027,3]
[343899497,1733013044435,-538.63,0.00026027,3]
[343899498,1733013044444,-500.0,0.00026027,3]
[343899499,1733013044453,-556.19,0.00026027,3]
[343899500,1733013044462,-1758.23,0.00026027,3]
[343899501,1733013044471,-500.0,0.00026027,3]
[343899502,1733013044480,-500.0,0.00026027,3]
[343899503,1733013044489,-500.0,0.00026027,3]
[343899504,1733013044501,-500.0,0.00026027,3]
[343899505,1733013044510,-1663.61,0.00026027,3]
[343899506,1733013044520,-500.0,0.00026027,3]
[343899507,1733013044611,-500.0,0.00026027,3]
[343899508,1733013044622,-743.13,0.00026027,3]
[343899509,1733013044633,-500.0,0.00026027,3]
[343899510,1733013044642,-829.0,0.00026027,3]
[343899511,1733013044652,-500.0,0.00026027,3]
[343899512,1733013044661,-500.0,0.00026027,3]
[343899513,1733013044670,-479.84719185,0.00026027,3]
[343899514,1733013044680,-500.0,0.00026027,2]
[343899515,1733013044689,-151.0,0.00026301,7]
[343899516,1733013044698,-500.0,0.00026301,3]
[343899517,1733013044707,-500.0,0.00026301,3]
[343899518,1733013044716,-500.0,0.00026301,3]
[343899519,1733013044726,-657.83,0.00026301,3]
[343899520,1733013044739,-500.0,0.00026301,3]
[343899521,1733013044752,-500.0,0.00026301,3]
[343899522,1733013044761,-2276.06,0.00026301,3]
[343899523,1733013044770,-500.0,0.00026301,3]
[343899524,1733013044780,-500.0,0.00026301,3]
[343899525,1733013044790,-559.63,0.00026301,3]
[343899526,1733013044799,-636.74,0.00026301,3]
[343899527,1733013044810,-500.0,0.00026301,3]
[343899528,1733013044822,-220.518294,0.00026301,7]
[343899529,1733013044831,-500.0,0.00026301,3]
[343899530,1733013044840,-500.0,0.00026301,3]
[343899531,1733013044850,-500.0,0.00026301,3]
[343899532,1733013044859,-909.37,0.00026301,3]
[343899533,1733013044868,-502.98180591,0.00026301,3]
[343899534,1733013044879,-500.0,0.00026301,3]
[343899535,1733013044888,-568.92125,0.00026301,3]
[343899536,1733013044898,-500.0,0.00026301,3]
[343899537,1733013044907,-531.47,0.00026301,3]
[343899538,1733013044916,-500.0,0.00026301,3]
[343899539,1733013044926,-500.0,0.00026301,3]
[343899540,1733013044935,-500.0,0.00026301,3]
[343899541,1733013044945,-500.0,0.00026301,3]
[343899542,1733013044954,-500.0,0.00026301,3]
[343899543,1733013044963,-500.0,0.00026301,3]
[343899544,1733013044974,-1910.88,0.00026301,3]
[343899545,1733013044983,-538.63,0.00026301,3]
[343899546,1733013044992,-500.0,0.00026301,3]
[343899547,1733013045003,-556.19,0.00026301,3]
[343899548,1733013045013,-1758.23,0.00026301,3]
[343899549,1733013045022,-500.0,0.00026301,3]
[343899550,1733013045031,-500.0,0.00026301,3]
[343899551,1733013045040,-500.0,0.00026301,3]
[343899552,1733013045050,-500.0,0.00026301,3]
[343899553,1733013045059,-1663.61,0.00026301,3]
[343899554,1733013045067,-500.0,0.00026301,3]
[343899555,1733013045077,-500.0,0.00026301,3]
[343899556,1733013045086,-743.13,0.00026301,3]
[343899557,1733013045095,-500.0,0.00026301,3]
[343899558,1733013045106,-829.0,0.00026301,3]
[343899559,1733013045115,-500.0,0.00026301,3]
[343899560,1733013045124,-500.0,0.00026301,3]
[343899561,1733013045134,-210.04,0.00026301,2]
[343899562,1733013045143,-300.0,0.000264,2]
[343899563,1733013045155,-500.0,0.000264,120]
[343899564,1733013045165,-300.0,0.000264,2]
[343899565,1733013045174,-6931.29391886,0.00026423,2]
[343899566,1733013045184,-822.663625,0.00026423,15]
[343899567,1733013045193,-500.65911155,0.00026494,2]
[343899568,1733013045202,-500.0,0.0002652,2]
[343899569,1733013045212,-500.0,0.00026535,2]
[343899570,1733013045221,-556.26444428,0.00026535,2]
[343899571,1733013045230,-500.0,0.00026535,2]
[343899572,1733013045239,-263.40478603,0.00026535,2]
[343899573,1733013045249,-151.0,0.00026575,7]
[343899574,1733013045259,-500.0,0.00026575,3]
[343899575,1733013045268,-500.0,0.00026575,3]
[343899576,1733013045277,-500.0,0.00026575,3]
[343899577,1733013045287,-657.83,0.00026575,3]
[343899578,1733013045297,-466.10597023,0.00026575,3]
[343899579,1733013045307,-500.0,0.00026575,3]
[343899580,1733013045317,-2276.06,0.00026575,3]
[343899581,1733013045326,-500.0,0.00026575,3]
[343899582,1733013045335,-500.0,0.00026575,3]
[343899583,1733013045345,-559.63,0.00026575,3]
[343899584,1733013045354,-636.74,0.00026575,3]
[343899585,1733013045366,-500.0,0.00026575,3]
[343899586,1733013045375,-500.0,0.00026575,3]
[343899587,1733013045384,-500.0,0.00026575,3]
[343899588,1733013045393,-500.0,0.00026575,3]
[343899589,1733013045404,-909.37,0.00026575,3]
[343899590,1733013045413,-500.0,0.00026575,3]
[343899591,1733013045424,-500.0,0.00026575,3]
[343899592,1733013045433,-531.47,0.00026575,3]
[343899593,1733013045443,-416.44,0.00026575,3]
[343899594,1733013045453,-500.0,0.00026575,3]
[343899595,1733013045463,-500.0,0.00026575,3]
[343899596,1733013045473,-500.0,0.00026575,3]
[343899597,1733013045483,-211.08019,0.00026575,3]
[343899598,1733013045492,-1910.88,0.00026575,3]
[343899599,1733013045503,-538.63,0.00026575,3]
[343899600,1733013045513,-500.0,0.00026575,3]
[343899601,1733013045523,-556.19,0.00026575,3]
[343899602,1733013045533,-1758.23,0.00026575,3]
[343899603,1733013045542,-500.0,0.00026575,3]
[343899604,1733013045551,-500.0,0.00026575,3]
[343899605,1733013045560,-285.75714118,0.00026575,3]
[343899606,1733013045569,-500.0,0.00026575,3]
[343899607,1733013045579,-1663.61,0.00026575,3]
[343899608,1733013045588,-500.0,0.00026575,3]
[343899609,1733013045597,-500.0,0.00026575,3]
[343899610,1733013045607,-743.13,0.00026575,3]
[343899611,1733013045616,-500.0,0.00026575,3]
[343899612,1733013045625,-829.0,0.00026575,3]
[343899613,1733013045635,-500.0,0.00026575,3]
[343899614,1733013045644,-500.0,0.00026575,3]
[343899615,1733013045655,-420.0,0.00026719,2]
[343899616,1733013045665,-750.0,0.000268,120]
[343899617,1733013045674,-500.0,0.00026806,2]
[343899618,1733013045684,-500.0,0.00026806,2]
[343899619,1733013045693,-500.0,0.00026849,3]
[343899620,1733013045702,-500.0,0.00026849,3]
[343899621,1733013045711,-500.0,0.00026849,3]
[343899622,1733013045720,-657.83,0.00026849,3]
[343899623,1733013045731,-500.0,0.00026849,3]
[343899624,1733013045744,-2276.06,0.00026849,3]
[343899625,1733013045754,-500.0,0.00026849,3]
[343899626,1733013045765,-500.0,0.00026849,3]
[343899627,1733013045777,-559.63,0.00026849,3]
[343899628,1733013045786,-636.74,0.00026849,3]
[343899629,1733013045795,-500.0,0.00026849,3]
[343899630,1733013045804,-500.0,0.00026849,3]
[343899631,1733013045815,-500.0,0.00026849,3]
[343899632,1733013045824,-500.0,0.00026849,3]
[343899633,1733013045834,-909.37,0.00026849,3]
[343899634,1733013045843,-500.0,0.00026849,3]
[343899635,1733013045851,-500.0,0.00026849,3]
[343899636,1733013045861,-531.47,0.00026849,3]
[343899637,1733013045870,-500.0,0.00026849,3]
[343899638,1733013045880,-500.0,0.00026849,3]
[343899639,1733013045888,-500.0,0.00026849,3]
[343899640,1733013045897,-1910.88,0.00026849,3]
[343899641,1733013045907,-538.63,0.00026849,3]
[343899642,1733013045916,-500.0,0.00026849,3]
[343899643,1733013045925,-556.19,0.00026849,3]
[343899644,1733013045934,-1758.23,0.00026849,3]
[343899645,1733013045943,-500.0,0.00026849,3]
[343899646,1733013045953,-500.0,0.00026849,3]
[343899648,1733013045963,-500.0,0.00026849,3]
[343899649,1733013045972,-1663.61,0.00026849,3]
[343899650,1733013045982,-500.0,0.00026849,3]
[343899651,1733013045992,-500.0,0.00026849,3]
[343899652,1733013046002,-743.13,0.00026849,3]
[343899653,1733013046011,-500.0,0.00026849,3]
[343899654,1733013046020,-829.0,0.00026849,3]
[343899655,1733013046029,-500.0,0.00026849,3]
[343899656,1733013046038,-500.0,0.00026849,3]
[343899657,1733013046047,-28963.12997443,0.000269,5]
[343899658,1733013046057,-151.0,0.000269,7]
[343899659,1733013046066,-173.5314866,0.00026902,2]
[343899660,1733013046075,-494.71151434,0.00027058,2]
[343899662,1733013046084,-500.0,0.00027068,2]
[343899663,1733013046093,-160.007867,0.00027089,2]
[343899665,1733013046102,-220.378059,0.00027089,2]
[343899667,1733013046112,-500.0,0.00027123,3]
[343899668,1733013046121,-500.0,0.00027123,3]
[343899669,1733013046131,-500.0,0.00027123,3]
[343899671,1733013046140,-657.83,0.00027123,3]
[343899672,1733013046149,-500.0,0.00027123,3]
[343899673,1733013046158,-2276.06,0.00027123,3]
[343899674,1733013046167,-500.0,0.00027123,3]
[343899675,1733013046176,-500.0,0.00027123,3]
[343899676,1733013046186,-559.63,0.00027123,3]
[343899677,1733013046195,-636.74,0.00027123,3]
[343899678,1733013046204,-500.0,0.00027123,3]
[343899679,1733013046213,-500.0,0.00027123,3]
[343899680,1733013046222,-500.0,0.00027123,3]
[343899681,1733013046231,-500.0,0.00027123,3]
[343899682,1733013046241,-909.37,0.00027123,3]
[343899683,1733013046251,-500.0,0.00027123,3]
[343899684,1733013046260,-500.0,0.00027123,3]
[343899685,1733013046270,-531.47,0.00027123,3]
[343899686,1733013046280,-500.0,0.00027123,3]
[343899687,1733013046289,-500.0,0.00027123,3]
[343899688,1733013046298,-500.0,0.00027123,3]
[343899689,1733013046308,-1910.88,0.00027123,3]
[343899690,1733013046317,-538.63,0.00027123,3]
[343899691,1733013046326,-416.6491645,0.00027123,3]
[343899692,1733013046336,-556.19,0.00027123,3]
[343899693,1733013046345,-1758.23,0.00027123,3]
[343899694,1733013046355,-500.0,0.00027123,3]
[343899696,1733013046364,-500.0,0.00027123,3]
[343899697,1733013046373,-500.0,0.00027123,3]
[343899698,1733013046382,-1663.61,0.00027123,3]
[343899699,1733013046391,-500.0,0.00027123,3]
[343899700,1733013046401,-500.0,0.00027123,3]
[343899701,1733013046410,-743.13,0.00027123,3]
[343899702,1733013046420,-489.41720398,0.00027123,3]
[343899703,1733013046429,-829.0,0.00027123,3]
[343899704,1733013046439,-500.0,0.00027123,3]
[343899705,1733013046448,-500.0,0.00027123,3]
[343899706,1733013046457,-286.684226,0.00027397,7]
[343899707,1733013046467,-500.0,0.00027397,3]
[343899708,1733013046476,-500.0,0.00027397,3]
[343899709,1733013046485,-500.0,0.00027397,3]
[343899710,1733013046494,-657.83,0.00027397,3]
[343899711,1733013046504,-500.0,0.00027397,3]
[343899712,1733013046513,-2276.06,0.00027397,3]
[343899714,1733013046523,-244.41192998,0.00027397,3]
[343899715,1733013046532,-500.0,0.00027397,3]
[343899716,1733013046541,-559.63,0.00027397,3]
[343899717,1733013046550,-636.74,0.00027397,3]
[343899718,1733013046559,-500.0,0.00027397,3]
[343899719,1733013046569,-500.0,0.00027397,3]
[343899720,1733013046578,-500.0,0.00027397,3]
[343899721,1733013046588,-500.0,0.00027397,3]
[343899722,1733013046597,-909.37,0.00027397,3]
[343899723,1733013046606,-500.0,0.00027397,3]
[343899724,1733013046615,-500.0,0.00027397,3]
[343899725,1733013046624,-531.47,0.00027397,3]
[343899726,1733013046633,-500.0,0.00027397,2]
[343899727,1733013046643,-500.0,0.00027397,3]
[343899728,1733013046652,-500.0,0.00027397,3]
[343899729,1733013046663,-500.0,0.00027397,3]
[343899730,1733013046672,-1910.88,0.00027397,3]
[343899731,1733013046682,-538.63,0.00027397,3]
[343899732,1733013046691,-556.19,0.00027397,3]
[343899733,1733013046700,-1758.23,0.00027397,3]
[343899734,1733013046709,-150.53221694,0.00027397,3]
[343899735,1733013046890,-1169.27083333,0.00024657,3]
[343899736,1733013046899,-1169.27083333,0.00024657,3]
[343899737,1733013046908,-1169.27083333,0.00024657,3]
[343899738,1733013046917,-3767.66,0.0002499,10]
[343899739,1733013046927,-349.46778306,0.00027397,3]
[343899740,1733013046936,-500.0,0.00027397,3]
[343899741,1733013046945,-500.0,0.00027397,3]
[343899742,1733013046954,-1245.45199564,0.00027397,3]
[343899743,1733013047010,-418.15800436,0.00027397,3]
[343899744,1733013047019,-252.4,0.00027397,3]
[343899745,1733013047028,-500.0,0.00027397,3]
[343899746,1733013047037,-743.13,0.00027397,3]
[343899747,1733013047046,-829.0,0.00027397,3]
[343899748,1733013047056,-500.0,0.00027397,3]
[343899749,1733013047065,-500.0,0.00027397,3]
[343899750,1733013047076,-217.9104304,0.00027397,2]
[343899751,1733013047087,-300.0,0.000274,2]
[343899752,1733013047097,-600.0,0.000274,120]
[343899753,1733013047106,-300.0,0.000274,2]
[343899754,1733013047116,-1546.36,0.000274,2]
[343899755,1733013047125,-220.378059,0.00027428,2]
[343899756,1733013047134,-606.47933824,0.000275,2]
[343899757,1733013047145,-600.0,0.00027616,2]
[343899758,1733013047155,-500.0,0.00027671,3]
[343899759,1733013047164,-500.0,0.00027671,3]
[343899760,1733013047173,-516.89242942,0.00027671,3]
[343899786,1733014232688,-1169.27083333,0.0002,2]
[343899787,1733014232704,-207.19761845,0.00024656,2]
[343899788,1733014232746,-92.80238155,0.00024656,2]
[343899789,1733014232759,-300.0,0.00024656,2]
[343899790,1733014232774,-352.10757972,0.00024657,3]
[343899791,1733014232790,-147.89242028,0.00024657,3]
[343899793,1733014232802,-1517.37,0.00024657,3]
[343899794,1733014232814,-500.0,0.00024657,3]
[343899795,1733014232982,-644.14,0.00024657,3]
[343899796,1733014232996,-500.0,0.00024657,3]
[343899797,1733014233006,-500.0,0.00024657,3]
[343899798,1733014233017,-176.645,0.00024768,2]
[343899799,1733014233027,-150.28,0.00024768,2]
[343899800,1733014233036,-173.5314866,0.00024829,2]
[343899801,1733014233046,-500.0,0.00024928,3]
[343899802,1733014233056,-500.0,0.00024928,3]
[343899803,1733014233066,-500.0,0.00024928,3]
[343899804,1733014233075,-500.0,0.00024928,3]
[343899805,1733014233085,-500.0,0.00024928,3]
[343899806,1733014233095,-1592.4,0.00024928,3]
[343899807,1733014233104,-500.0,0.00024928,3]
[343899808,1733014233114,-500.0,0.00024928,3]
[343899809,1733014233124,-426.94773858,0.00024928,3]
[343899810,1733014233138,-1465.19,0.00024928,3]
[343899811,1733014233147,-500.0,0.00024928,3]
[343899812,1733014233156,-500.0,0.00024928,3]
[343899813,1733014233166,-500.0,0.00024928,3]
[343899814,1733014233178,-1317.02,0.00024928,3]
[343899815,1733014233189,-500.0,0.00024928,3]
[343899816,1733014233201,-500.0,0.00024928,3]
[343899817,1733014233216,-656.29,0.00024928,3]
[343899818,1733014233225,-500.0,0.00024928,3]
[343899819,1733014233236,-500.0,0.00024928,3]
[343899820,1733014233245,-500.0,0.00024929,3]
[343899821,1733014233255,-500.0,0.00024929,3]
[343899822,1733014233267,-500.0,0.00024929,3]
[343899823,1733014233277,-500.0,0.00024929,3]
[343899824,1733014233286,-500.0,0.00024929,3]
[343899825,1733014233297,-502.98180591,0.00024929,3]
[343899826,1733014233308,-500.0,0.00024929,3]
[343899827,1733014233318,-500.0,0.00024929,3]
[343899828,1733014233329,-360.96472855,0.00024929,3]
[343899829,1733014233339,-500.0,0.00024929,3]
[343899830,1733014233348,-500.0,0.00024929,3]
[343899831,1733014233358,-500.0,0.00024929,3]
[343899832,1733014233367,-500.0,0.00024929,3]
[343899833,1733014233377,-500.0,0.00024929,3]
[343899834,1733014233386,-500.0,0.00024929,3]
[343899835,1733014233397,-500.0,0.00024929,3]
[343899836,1733014233406,-500.0,0.00024929,3]
[343899837,1733014233416,-500.0,0.00024929,3]
[343899838,1733014233425,-500.0,0.00024929,3]
[343899839,1733014233435,-500.0,0.00024929,3]
[343899840,1733014233445,-588.31,0.00024929,3]
[343899841,1733014233454,-500.0,0.00024929,3]
[343899842,1733014233464,-500.0,0.00024929,2]
[343899843,1733014233474,-500.0,0.00024929,3]
[343899844,1733014233482,-500.0,0.00024929,3]
[343899845,1733014233492,-500.0,0.00024929,3]
[343899846,1733014233502,-500.0,0.00024929,3]
[343899847,1733014233511,-500.0,0.00024929,3]
[343899848,1733014233527,-500.0,0.00024929,3]
[343899849,1733014233537,-500.0,0.00024931,3]
[343899850,1733014233547,-1517.37,0.00024931,3]
[343899851,1733014233557,-500.0,0.00024931,3]
[343899852,1733014233567,-644.14,0.00024931,3]
[343899853,1733014233578,-500.0,0.00024931,3]
[343899854,1733014233587,-500.0,0.00024931,3]
[343899855,1733014233598,-300.0,0.00025,2]
[343899856,1733014233608,-277.099999,0.00025,2]
[343899857,1733014233618,-169.275,0.00025026,8]
[343899858,1733014233628,-171.13619822,0.00025202,2]
[343899859,1733014233637,-487.58833829,0.00025202,2]
[343899860,1733014233646,-500.0,0.00025202,3]
[343899861,1733014233656,-500.0,0.00025202,3]
[343899862,1733014233666,-500.0,0.00025202,3]
[343899863,1733014233675,-500.0,0.00025202,3]
[343899864,1733014233685,-500.0,0.00025202,3]
[343899865,1733014233695,-1592.4,0.00025202,3]
[343899866,1733014233704,-500.0,0.00025202,3]
[343899867,1733014233713,-500.0,0.00025202,3]
[343899868,1733014233723,-1465.19,0.00025202,3]
[343899869,1733014233732,-500.0,0.00025202,3]
[343899870,1733014233741,-500.0,0.00025202,3]
[343899871,1733014233750,-1317.02,0.00025202,3]
[343899872,1733014233759,-500.0,0.00025202,3]
[343899873,1733014233772,-479.84719185,0.00025202,3]
[343899874,1733014233781,-656.29,0.00025202,3]
[343899875,1733014233791,-500.0,0.00025202,3]
[343899876,1733014233801,-500.0,0.00025202,3]
[343899877,1733014233810,-179.5257973,0.00025203,3]
[343899878,1733014233819,-500.0,0.00025203,3]
[343899879,1733014233828,-500.0,0.00025203,3]
[343899880,1733014233838,-500.0,0.00025203,3]
[343899881,1733014233848,-500.0,0.00025203,3]
[343899882,1733014233857,-500.0,0.00025203,3]
[343899883,1733014233866,-500.0,0.00025203,3]
[343899884,1733014233875,-500.0,0.00025203,3]
[343899885,1733014233884,-500.0,0.00025203,3]
[343899886,1733014233893,-500.0,0.00025203,3]
[343899887,1733014233901,-500.0,0.00025203,3]
[343899888,1733014233911,-500.0,0.00025203,3]
[343899889,1733014233920,-500.0,0.00025203,3]
[343899890,1733014233929,-500.0,0.00025203,3]
[343899891,1733014233939,-500.0,0.00025203,3]
[343899892,1733014233948,-500.0,0.00025203,3]
[343899893,1733014233958,-588.31,0.00025203,3]
[343899894,1733014233967,-500.0,0.00025203,3]
[343899895,1733014233977,-500.0,0.00025203,2]
[343899896,1733014233987,-500.0,0.00025203,3]
[343899897,1733014233997,-500.0,0.00025203,3]
[343899898,1733014234006,-250.36,0.00025203,3]
[343899899,1733014234019,-500.0,0.00025203,3]
[343899900,1733014234029,-500.0,0.00025205,3]
[343899901,1733014234039,-1517.37,0.00025205,3]
[343899902,1733014234048,-500.0,0.00025205,3]
[343899903,1733014234057,-644.14,0.00025205,3]
[343899904,1733014234067,-500.0,0.00025205,3]
[343899905,1733014234076,-500.0,0.00025205,3]
[343899906,1733014234085,-300.0,0.000254,2]
[343899907,1733014234095,-500.0,0.00025476,3]
[343899908,1733014234104,-211.08019,0.00025476,3]
[343899909,1733014234113,-500.0,0.00025476,3]
[343899910,1733014234124,-500.0,0.00025476,3]
[343899911,1733014234137,-500.0,0.00025476,3]
[343899912,1733014234147,-466.10597023,0.00025476,3]
[343899913,1733014234156,-1592.4,0.00025476,3]
[343899914,1733014234165,-500.0,0.00025476,3]
[343899915,1733014234176,-1465.19,0.00025476,3]
[343899916,1733014234186,-500.0,0.00025476,3]
[343899917,1733014234195,-500.0,0.00025476,3]
[343899918,1733014234204,-1317.02,0.00025476,3]
[343899919,1733014234217,-500.0,0.00025476,3]
[343899920,1733014234226,-656.29,0.00025476,3]
[343899921,1733014234235,-500.0,0.00025476,3]
[343899922,1733014234245,-500.0,0.00025476,3]
[343899923,1733014234255,-500.0,0.00025477,3]
[343899924,1733014234268,-500.0,0.00025477,3]
[343899925,1733014234279,-500.0,0.00025477,3]
[343899926,1733014234289,-500.0,0.00025477,3]
[343899927,1733014234298,-500.0,0.00025477,3]
[343899928,1733014234308,-500.0,0.00025477,3]
[343899929,1733014234317,-285.75714118,0.00025477,3]
[343899930,1733014234326,-500.0,0.00025477,3]
[343899931,1733014234335,-500.0,0.00025477,3]
[343899932,1733014234344,-500.0,0.00025477,3]
[343899933,1733014234352,-500.0,0.00025477,3]
[343899934,1733014234361,-500.0,0.00025477,3]
[343899935,1733014234371,-500.0,0.00025477,3]
[343899936,1733014234381,-500.0,0.00025477,3]
[343899937,1733014234390,-500.0,0.00025477,3]
[343899938,1733014234399,-588.31,0.00025477,3]
[343899939,1733014234409,-500.0,0.00025477,3]
[343899940,1733014234418,-210.04,0.00025477,2]
[343899941,1733014234427,-500.0,0.00025477,3]
[343899942,1733014234436,-568.92125,0.00025477,3]
[343899943,1733014234445,-500.0,0.00025477,3]
[343899944,1733014234454,-500.0,0.00025479,3]
[343899945,1733014234463,-1517.37,0.00025479,3]
[343899946,1733014234472,-500.0,0.00025479,3]
[343899947,1733014234482,-644.14,0.00025479,3]
[343899948,1733014234491,-416.6491645,0.00025479,3]
[343899949,1733014234500,-500.0,0.00025479,3]
[343899950,1733014234509,-4839.21,0.00025731,10]
[343899951,1733014234523,-5807.05,0.0002574,10]
[343899952,1733014234532,-3719.29,0.00025741,10]
[343899953,1733014234542,-500.0,0.0002575,3]
[343899954,1733014234551,-500.0,0.0002575,3]
[343899955,1733014234561,-500.0,0.0002575,3]
[343899956,1733014234570,-500.0,0.0002575,3]
[343899957,1733014234581,-1592.4,0.0002575,3]
[343899958,1733014234590,-500.0,0.0002575,3]
[343899959,1733014234600,-1465.19,0.0002575,3]
[343899960,1733014234609,-500.0,0.0002575,3]
[343899961,1733014234619,-500.0,0.0002575,3]
[343899962,1733014234628,-1317.02,0.0002575,3]
[343899963,1733014234638,-500.0,0.0002575,3]
[343899964,1733014234648,-656.29,0.0002575,3]
[343899965,1733014234657,-500.0,0.0002575,3]
[343899966,1733014234667,-500.0,0.0002575,3]
[343899967,1733014234677,-500.0,0.00025751,3]
[343899968,1733014234687,-500.0,0.00025751,3]
[343899969,1733014234697,-500.0,0.00025751,3]
[343899970,1733014234707,-500.0,0.00025751,3]
[343899971,1733014234716,-500.0,0.00025751,3]
[343899972,1733014234725,-500.0,0.00025751,3]
[343899973,1733014234735,-500.0,0.00025751,3]
[343899974,1733014234745,-500.0,0.00025751,3]
[343899975,1733014234754,-500.0,0.00025751,3]
[343899976,1733014234765,-500.0,0.00025751,3]
[343899977,1733014234776,-500.0,0.00025751,3]
[343899978,1733014234786,-500.0,0.00025751,3]
[343899979,1733014234796,-500.0,0.00025751,3]
[343899980,1733014234805,-500.0,0.00025751,3]
[343899981,1733014234815,-588.31,0.00025751,3]
[343899982,1733014234825,-500.0,0.00025751,3]
[343899983,1733014234834,-500.0,0.00025751,3]
[343899984,1733014234844,-416.44,0.00025751,3]
[343899985,1733014234853,-500.0,0.00025753,3]
[343899986,1733014234863,-1517.37,0.00025753,3]
[343899987,1733014234872,-500.0,0.00025753,3]
[343899988,1733014234882,-644.14,0.00025753,3]
[343899989,1733014234891,-500.0,0.00025753,3]
[343899990,1733014234900,-2000.0,0.00026,2]
[343899991,1733014234911,-500.0,0.00026024,3]
[343899992,1733014234921,-500.0,0.00026024,3]
[343899993,1733014234930,-500.0,0.00026024,3]
[343899994,1733014234940,-500.0,0.00026024,3]
[343899995,1733014234950,-1592.4,0.00026024,3]
[343899996,1733014234959,-500.0,0.00026024,3]
[343899997,1733014234969,-1465.19,0.00026024,3]
[343899998,1733014234979,-500.0,0.00026024,3]
[343899999,1733014234989,-500.0,0.00026024,3]